fUSD/lending_fUSD_20250111
["ID","MTS","AMOUNT","RATE_DAILY","PERIOD"]
[348496587,1736584243995,-500.0,0.00010272,2]
[348496588,1736584244007,-747.31,0.00010272,2]
[348496589,1736584244016,-500.0,0.00010272,2]
[348496590,1736584244025,-500.0,0.00010272,2]
[348496591,1736584244035,-1803.48,0.00010272,2]
[348496592,1736584244044,-797.67,0.00010272,2]
[348496593,1736584244054,-696.28,0.00010272,2]
[348496594,1736584244064,-599.07,0.00010272,2]
[348496595,1736584244073,-559.360056,0.00010272,2]
[348496596,1736584244083,-1037.3,0.00010272,2]
[348496597,1736584244092,-2016.09,0.00010272,2]
[348496598,1736584244102,-1351.14,0.00010272,2]
[348496599,1736584244111,-500.0,0.00010272,2]
[348496600,1736584244121,-816.82,0.00010272,2]
[348496601,1736584244130,-663.435756,0.00010272,2]
[348496602,1736584244139,-2570.39,0.00010272,2]
[348496603,1736584244148,-500.0,0.00010272,2]
[348496604,1736584244157,-1485.17,0.00010272,2]
[348496605,1736584244166,-500.0,0.00010272,2]
[348496606,1736584244175,-2018.99,0.00010272,2]
[348496607,1736584244184,-650.86,0.00010272,2]
[348496608,1736584244194,-1041.56,0.00010272,2]
[348496609,1736584244203,-500.0,0.00010272,2]
[348496610,1736584244212,-977.14,0.00010272,2]
[348496611,1736584244221,-718.54,0.00010272,2]
[348496612,1736584244230,-500.0,0.00010272,2]
[348496613,1736584244239,-500.0,0.00010272,2]
[348496614,1736584244249,-500.0,0.00010272,2]
[348496615,1736584244259,-500.0,0.00010272,2]
[348496616,1736584244268,-620.96,0.00010272,2]
[348496617,1736584244277,-1277.46,0.00010272,2]
[348496618,1736584244286,-1884.38,0.00010272,2]
[348496619,1736584244295,-666.36,0.00010272,2]
[348496620,1736584244305,-500.0,0.00010272,2]
[348496621,1736584244314,-1535.86,0.00010272,2]
[348496622,1736584244323,-963.85,0.00010272,2]
[348496623,1736584244332,-500.0,0.00010272,2]
[348496624,1736584244341,-895.98,0.00010272,2]
[348496625,1736584244351,-500.0,0.00010272,2]
[348496626,1736584244360,-500.0,0.00010272,2]
[348496627,1736584244370,-500.0,0.00010272,2]
[348496628,1736584244379,-500.0,0.00010272,2]
[348496629,1736584244388,-500.0,0.00010272,2]
[348496630,1736584244397,-351.66,0.00010272,2]
[348496631,1736584244407,-500.0,0.00010272,2]
[348496632,1736584244416,-604.85,0.00010272,2]
[348496633,1736584244425,-500.0,0.00010272,2]
[348496634,1736584244435,-500.0,0.00010272,2]
[348496635,1736584244444,-500.0,0.00010272,2]
[348496636,1736584244454,-644.45592147,0.00010272,2]
[348496637,1736584244463,-500.0,0.00010272,2]
[348496638,1736584244472,-3135.94,0.00010272,2]
[348496639,1736584244482,-500.0,0.00010272,2]
[348496640,1736584244491,-500.0,0.00010272,2]
[348496641,1736584244503,-816.99,0.00010272,2]
[348496642,1736584244512,-500.0,0.00010272,2]
[348496643,1736584244521,-766.56,0.00010272,2]
[348496644,1736584244531,-2274.23,0.00010272,2]
[348496645,1736584244540,-1599.89,0.00010272,2]
[348496646,1736584244550,-500.0,0.00010272,2]
[348496647,1736584244559,-694.2,0.00010272,2]
[348496648,1736584244569,-500.0,0.00010272,2]
[348496649,1736584244579,-500.0,0.00010273,2]
[348496650,1736584244589,-500.0,0.00010273,2]
[348496651,1736584244598,-1613.86,0.00010273,2]
[348496652,1736584244608,-500.0,0.00010273,2]
[348496653,1736584244618,-500.0,0.00010273,2]
[348496654,1736584244627,-500.0,0.00010273,2]
[348496655,1736584244637,-500.0,0.00010273,2]
[348496656,1736584244646,-500.0,0.00010273,2]
[348496657,1736584244656,-500.0,0.00010273,2]
[348496658,1736584244666,-500.0,0.00010273,2]
[348496659,1736584244679,-500.0,0.00010273,2]
[348496660,1736584244689,-500.0,0.00010273,2]
[348496661,1736584244700,-500.0,0.00010273,2]
[348496662,1736584244715,-500.0,0.00010273,2]
[348496663,1736584244730,-500.0,0.00010273,2]
[348496664,1736584244740,-844.55,0.00010273,2]
[348496665,1736584244751,-517.94,0.00010273,2]
[348496666,1736584244761,-500.0,0.00010273,2]
[348496667,1736584244771,-609.96,0.00010273,2]
[348496668,1736584244780,-500.0,0.00010273,2]
[348496669,1736584244790,-514.82941288,0.00010273,2]
[348496670,1736584244799,-638.22,0.00010273,2]
[348496671,1736584244808,-500.0,0.00010273,2]
[348496672,1736584244817,-500.0,0.00010273,2]
[348496673,1736584244826,-500.0,0.00010273,2]
[348496674,1736584244836,-500.0,0.00010273,2]
[348496675,1736584244845,-324.92041479,0.00010273,2]
[348496676,1736584244854,-556.9,0.00010273,2]
[348496677,1736584244863,-794.88,0.00010273,2]
[348496678,1736584244872,-601.88,0.00010273,2]
[348496679,1736584244881,-500.0,0.00010273,2]
[348496680,1736584244890,-500.0,0.00010273,2]
[348496681,1736584244899,-500.0,0.00010273,2]
[348496682,1736584244908,-500.0,0.00010273,2]
[348496683,1736584244918,-500.0,0.00010273,2]
[348496684,1736584244927,-500.0,0.00010273,2]
[348496685,1736584244935,-500.0,0.00010273,2]
[348496686,1736584244944,-500.0,0.00010273,2]
[348496687,1736584244954,-500.0,0.00010273,2]
[348496688,1736584244965,-500.0,0.00010273,2]
[348496689,1736584244974,-500.0,0.00010273,2]
[348496690,1736584244983,-1000.0,0.00010273,2]
[348496691,1736584244992,-500.0,0.00010273,2]
[348496692,1736584245002,-500.0,0.00010273,2]
[348496693,1736584245012,-500.0,0.00010273,2]
[348496694,1736584245021,-501.09,0.00010273,2]
[348496695,1736584245030,-500.0,0.00010273,2]
[348496696,1736584245039,-500.0,0.00010273,2]
[348496697,1736584245048,-507.52,0.00010273,2]
[348496698,1736584245057,-500.0,0.00010273,2]
[348496699,1736584245066,-500.0,0.00010273,2]
[348496700,1736584245075,-500.0,0.00010273,2]
[348496701,1736584245084,-540.19,0.00010273,2]
[348496702,1736584245094,-500.0,0.00010273,2]
[348496703,1736584245103,-500.0,0.00010273,2]
[348496704,1736584245111,-1423.91,0.00010273,2]
[348496705,1736584245120,-500.0,0.00010273,2]
[348496706,1736584245129,-500.0,0.00010273,2]
[348496707,1736584245138,-500.0,0.00010273,2]
[348496708,1736584245147,-500.0,0.00010273,2]
[348496709,1736584245156,-500.0,0.00010273,2]
[348496710,1736584245165,-500.0,0.00010273,2]
[348496711,1736584245174,-500.0,0.00010273,2]
[348496712,1736584245183,-500.0,0.00010273,2]
[348496713,1736584245192,-500.0,0.00010273,2]
[348496714,1736584245201,-500.0,0.00010273,2]
[348496715,1736584245210,-500.0,0.00010273,2]
[348496716,1736584245219,-500.0,0.00010273,2]
[348496717,1736584245229,-544.12513733,0.00010273,2]
[348496718,1736584245238,-500.0,0.00010273,2]
[348496719,1736584245249,-500.0,0.00010273,2]
[348496720,1736584245259,-876.67,0.00010273,2]
[348496721,1736584245268,-500.0,0.00010273,2]
[348496722,1736584245277,-500.0,0.00010273,2]
[348496724,1736584245286,-616.53840237,0.00010273,2]
[348496726,1736584245295,-500.0,0.00010273,2]
[348496728,1736584245304,-500.0,0.00010273,2]
[348496730,1736584245313,-497.19276236,0.00010273,2]
[348496731,1736584245323,-2323.46,0.00010273,2]
[348496732,1736584245332,-500.0,0.00010273,2]
[348496733,1736584245341,-500.0,0.00010273,2]
[348496735,1736584245350,-500.0,0.00010273,2]
[348496737,1736584245359,-500.0,0.00010273,2]
[348496739,1736584245369,-500.0,0.00010273,2]
[348496741,1736584245378,-500.0,0.00010273,2]
[348496743,1736584245387,-500.0,0.00010273,2]
[348496745,1736584245395,-2002.97,0.00010273,2]
[348496746,1736584245404,-500.0,0.00010273,2]
[348496748,1736584245414,-500.0,0.00010273,2]
[348496750,1736584245423,-500.0,0.00010273,2]
[348496752,1736584245432,-500.0,0.00010273,2]
[348496754,1736584245441,-1975.52,0.00010273,2]
[348496756,1736584245450,-500.0,0.00010273,2]
[348496758,1736584245459,-500.0,0.00010273,2]
[348496760,1736584245468,-500.0,0.00010273,2]
[348496761,1736584245477,-500.0,0.00010273,2]
[348496762,1736584245486,-500.0,0.00010273,2]
[348496763,1736584245495,-500.0,0.00010273,2]
[348496764,1736584245504,-500.0,0.00010273,2]
[348496765,1736584245514,-500.0,0.00010273,2]
[348496766,1736584245523,-500.0,0.00010273,2]
[348496767,1736584245532,-500.0,0.00010273,2]
[348496768,1736584245542,-500.0,0.00010273,2]
[348496769,1736584245551,-606.66493066,0.00010273,2]
[348496770,1736584245561,-500.0,0.00010273,2]
[348496771,1736584245570,-500.0,0.00010273,2]
[348496772,1736584245580,-500.0,0.00010273,2]
[348496773,1736584245589,-573.64,0.00010273,2]
[348496774,1736584245599,-500.0,0.00010273,2]
[348496775,1736584245608,-500.0,0.00010273,2]
[348496776,1736584245617,-433.85136174,0.00010273,2]
[348496777,1736584245627,-500.0,0.00010273,2]
[348496778,1736584245636,-500.0,0.00010273,2]
[348496779,1736584245646,-151.0,0.0001028,2]
[348496780,1736584245656,-363.94004496,0.00010288,2]
[348496781,1736584245666,-231.0,0.000103,2]
[348496782,1736584245679,-2563.49067462,0.00010314,2]
[348496783,1736584245689,-1450.5010392,0.00010398,2]
[348496784,1736584245698,-363.94004496,0.00010405,2]
[348496785,1736584245708,-236.41,0.0001041,2]
[348496786,1736584245717,-500.0,0.0001041,2]
[348496787,1736584245727,-1000.0,0.00010411,2]
[348496788,1736584245737,-1000.0,0.00010411,2]
[348496789,1736584245747,-1000.0,0.00010411,2]
[348496790,1736584245804,-1000.0,0.00010411,2]
[348496791,1736584245814,-1000.0,0.00010411,2]
[348496792,1736584245823,-1000.0,0.00010411,2]
[348496793,1736584245832,-1000.0,0.00010411,2]
[348496794,1736584245842,-1000.0,0.00010411,2]
[348496795,1736584245851,-1000.0,0.00010411,2]
[348496796,1736584245860,-1000.0,0.00010411,2]
[348496797,1736584245870,-1000.0,0.00010411,2]
[348496798,1736584245879,-1000.0,0.00010411,2]
[348496799,1736584245888,-1000.0,0.00010411,2]
[348496800,1736584245897,-1000.0,0.00010411,2]
[348496802,1736584245907,-1000.0,0.00010411,2]
[348496804,1736584245916,-1000.0,0.00010411,2]
[348496806,1736584245925,-1000.0,0.00010411,2]
[348496808,1736584245934,-1000.0,0.00010411,2]
[348496810,1736584245943,-1000.0,0.00010411,2]
[348496811,1736584245953,-1000.0,0.00010411,2]
[348496812,1736584245962,-1000.0,0.00010411,2]
[348496813,1736584245971,-1000.0,0.00010411,2]
[348496814,1736584245980,-1000.0,0.00010411,2]
[348496815,1736584245989,-1000.0,0.00010411,2]
[348496816,1736584246000,-1000.0,0.00010411,2]
[348496817,1736584246009,-1000.0,0.00010411,2]
[348496818,1736584246019,-1000.0,0.00010411,2]
[348496819,1736584246028,-1000.0,0.00010411,2]
[348496820,1736584246038,-1000.0,0.00010411,2]
[348496821,1736584246047,-1000.0,0.00010411,2]
[348496822,1736584246056,-1000.0,0.00010411,2]
[348496823,1736584246067,-1000.0,0.00010411,2]
[348496824,1736584246076,-1000.0,0.00010411,2]
[348496825,1736584246085,-1000.0,0.00010411,2]
[348496826,1736584246095,-1000.0,0.00010411,2]
[348496827,1736584246104,-1000.0,0.00010411,2]
[348496828,1736584246113,-1000.0,0.00010411,2]
[348496829,1736584246122,-1000.0,0.00010411,2]
[348496830,1736584246131,-1000.0,0.00010411,2]
[348496831,1736584246140,-1000.0,0.00010411,2]
[348496832,1736584246149,-1000.0,0.00010411,2]
[348496833,1736584246158,-1000.0,0.00010411,2]
[348496834,1736584246167,-1000.0,0.00010411,2]
[348496835,1736584246176,-741.0,0.00010411,2]
[348496836,1736584246185,-150.24,0.00010411,2]
[348496837,1736584246194,-2563.49067462,0.00010417,2]
[348496838,1736584246203,-1000.0,0.00010423,2]
[348496839,1736584246213,-823.39,0.00010436,2]
[348496840,1736584246222,-184.88,0.00010473,2]
[348496841,1736584246232,-429.82131162,0.00010474,2]
[348496842,1736584246242,-2500.0,0.000105,3]
[348496843,1736584246253,-2563.49067462,0.00010521,2]
[348496844,1736584246262,-363.94004496,0.00010523,2]
[348496845,1736584246272,-500.0,0.00010544,2]
[348496846,1736584246281,-500.0,0.00010544,2]
[348496847,1736584246291,-500.0,0.00010544,2]
[348496848,1736584246300,-500.0,0.00010544,2]
[348496849,1736584246309,-500.0,0.00010544,2]
[348496850,1736584246318,-500.0,0.00010544,2]
[348496851,1736584246327,-500.0,0.00010544,2]
[348496852,1736584246336,-385.17589502,0.00010544,2]
[348496853,1736584246346,-500.0,0.00010544,2]
[348496854,1736584246355,-500.0,0.00010544,2]
[348496855,1736584246364,-500.0,0.00010544,2]
[348496856,1736584246373,-500.0,0.00010544,2]
[348496857,1736584246382,-500.0,0.00010544,2]
[348496858,1736584246390,-500.0,0.00010544,2]
[348496859,1736584246399,-500.0,0.00010544,2]
[348496860,1736584246408,-500.0,0.00010544,2]
[348496861,1736584246417,-500.0,0.00010544,2]
[348496862,1736584246426,-204.82068201,0.00010544,2]
[348496863,1736584246435,-500.0,0.00010544,2]
[348496864,1736584246443,-500.0,0.00010544,2]
[348496865,1736584246452,-500.0,0.00010544,2]
[348496866,1736584246462,-500.0,0.00010544,2]
[348496867,1736584246471,-500.0,0.00010544,2]
[348496868,1736584246479,-587.75230671,0.00010544,2]
[348496869,1736584246488,-1474.99,0.00010544,2]
[348496870,1736584246497,-500.0,0.00010544,2]
[348496871,1736584246506,-163.09406721,0.00010544,2]
[348496872,1736584246514,-500.0,0.00010544,2]
[348496873,1736584246523,-500.0,0.00010544,2]
[348496874,1736584246532,-500.0,0.00010544,2]
[348496875,1736584246541,-500.0,0.00010544,2]
[348496876,1736584246550,-500.0,0.00010544,2]
[348496877,1736584246560,-500.0,0.00010544,2]
[348496878,1736584246569,-500.0,0.00010544,2]
[348496879,1736584246578,-504.82397432,0.00010544,2]
[348496880,1736584246587,-500.0,0.00010544,2]
[348496881,1736584246596,-539.50715848,0.00010544,2]
[348496882,1736584246604,-500.0,0.00010544,2]
[348496883,1736584246613,-500.0,0.00010544,2]
[348496884,1736584246622,-331.09250429,0.00010544,2]
[348496885,1736584246631,-500.0,0.00010544,2]
[348496886,1736584246639,-500.0,0.00010544,2]
[348496887,1736584246648,-500.0,0.00010544,2]
[348496888,1736584246657,-500.0,0.00010544,2]
[348496889,1736584246666,-500.0,0.00010544,2]
[348496890,1736584246680,-500.0,0.00010544,2]
[348496891,1736584246688,-500.0,0.00010544,2]
[348496892,1736584246698,-500.0,0.00010544,2]
[348496893,1736584246706,-500.0,0.00010544,2]
[348496894,1736584246716,-500.0,0.00010544,2]
[348496895,1736584246725,-500.0,0.00010544,2]
[348496896,1736584246734,-517.76933176,0.00010544,2]
[348496897,1736584246743,-195.06813729,0.00010544,2]
[348496898,1736584246753,-794.73,0.00010544,2]
[348496899,1736584246763,-500.0,0.00010544,2]
[348496900,1736584246772,-617.74058674,0.00010544,2]
[348496901,1736584246781,-500.0,0.00010544,2]
[348496902,1736584246790,-500.0,0.00010544,2]
[348496903,1736584246799,-500.0,0.00010544,2]
[348496904,1736584246808,-500.0,0.00010544,2]
[348496905,1736584246817,-500.0,0.00010544,2]
[348496906,1736584246827,-500.0,0.00010544,2]
[348496907,1736584246836,-591.35,0.00010544,2]
[348496908,1736584246846,-152.518603,0.00010544,2]
[348496909,1736584246855,-284.63452238,0.00010544,2]
[348496910,1736584246864,-500.0,0.00010544,2]
[348496911,1736584246873,-500.0,0.00010544,2]
[348496912,1736584246882,-500.0,0.00010544,2]
[348496913,1736584246892,-500.0,0.00010544,2]
[348496914,1736584246901,-500.0,0.00010544,2]
[348496915,1736584246910,-500.0,0.00010544,2]
[348496916,1736584246920,-297.48326627,0.00010544,2]
[348496917,1736584246928,-500.0,0.00010544,2]
[348496918,1736584246938,-500.0,0.00010544,2]
[348496919,1736584246947,-500.0,0.00010544,2]
[348496920,1736584246956,-339.34193204,0.00010544,2]
[348496921,1736584246966,-500.0,0.00010544,2]
[348496922,1736584246975,-500.0,0.00010544,2]
[348496923,1736584246983,-500.0,0.00010544,2]
[348496924,1736584246993,-729.8,0.00010545,2]
[348496925,1736584247002,-500.0,0.00010545,2]
[348496926,1736584247011,-500.0,0.00010545,2]
[348496927,1736584247020,-500.0,0.00010545,2]
[348496928,1736584247030,-520.43,0.00010545,2]
[348496929,1736584247039,-500.0,0.00010545,2]
[348496930,1736584247049,-500.0,0.00010545,2]
[348496931,1736584247058,-500.0,0.00010545,2]
[348496932,1736584247067,-500.0,0.00010545,2]
[348496933,1736584247076,-500.0,0.00010545,2]
[348496934,1736584247086,-500.0,0.00010545,2]
[348496935,1736584247095,-500.0,0.00010545,2]
[348496936,1736584247105,-500.0,0.00010545,2]
[348496937,1736584247114,-500.0,0.00010545,2]
[348496938,1736584247123,-500.0,0.00010545,2]
[348496939,1736584247132,-500.0,0.00010545,2]
[348496940,1736584247141,-500.0,0.00010545,2]
[348496941,1736584247151,-500.0,0.00010545,2]
[348496942,1736584247160,-500.0,0.00010545,2]
[348496943,1736584247169,-500.0,0.00010545,2]
[348496944,1736584247179,-500.0,0.00010545,2]
[348496945,1736584247188,-500.0,0.00010545,2]
[348496946,1736584247197,-500.0,0.00010545,2]
[348496947,1736584247206,-500.0,0.00010545,2]
[348496948,1736584247215,-500.0,0.00010545,2]
[348496949,1736584247224,-500.0,0.00010545,2]
[348496950,1736584247233,-500.0,0.00010545,2]
[348496951,1736584247243,-791.02,0.00010545,2]
[348496952,1736584247253,-500.0,0.00010545,2]
[348496953,1736584247262,-500.0,0.00010545,2]
[348496954,1736584247272,-500.0,0.00010545,2]
[348496955,1736584247281,-500.0,0.00010545,2]
[348496956,1736584247290,-1213.89,0.00010545,2]
[348496957,1736584247299,-500.0,0.00010545,2]
[348496958,1736584247309,-500.0,0.00010545,2]
[348496959,1736584247319,-500.0,0.00010545,2]
[348496960,1736584247328,-980.94,0.00010545,2]
[348496961,1736584247337,-500.0,0.00010545,2]
[348496962,1736584247346,-500.0,0.00010545,2]
[348496963,1736584247355,-500.0,0.00010545,2]
[348496964,1736584247365,-500.0,0.00010545,2]
[348496965,1736584247374,-687.85,0.00010545,2]
[348496966,1736584247383,-500.0,0.00010545,2]
[348496967,1736584247392,-222.07280811,0.00010545,2]
[348496968,1736584247401,-500.0,0.00010545,2]
[348496969,1736584247410,-500.0,0.00010545,2]
[348496970,1736584247420,-2015.53,0.00010545,2]
[348496971,1736584247429,-1132.68,0.00010545,2]
[348496972,1736584247439,-1037.53,0.00010545,2]
[348496973,1736584247448,-245.289234,0.00010545,2]
[348496974,1736584247457,-2128.44,0.00010545,2]
[348496975,1736584247466,-1179.49,0.00010545,2]
[348496976,1736584247478,-2528.49,0.00010545,2]
[348496977,1736584247487,-1276.0,0.00010545,2]
[348496978,1736584247496,-500.0,0.00010545,2]
[348496979,1736584247505,-500.0,0.00010546,2]
[348496980,1736584247514,-594.16,0.00010546,2]
[348496981,1736584247523,-642.07,0.00010546,2]
[348496982,1736584247533,-1086.95,0.00010546,2]
[348496983,1736584247542,-833.96,0.00010546,2]
[348496984,1736584247551,-2082.98,0.00010546,2]
[348496985,1736584247561,-885.0,0.00010546,2]
[348496986,1736584247570,-1070.01,0.00010546,2]
[348496987,1736584247579,-712.73,0.00010546,2]
[348496988,1736584247589,-770.9,0.00010546,2]
[348496989,1736584247598,-500.0,0.00010546,2]
[348496990,1736584247607,-500.0,0.00010546,2]
[348496991,1736584247617,-1237.23,0.00010546,2]
[348496992,1736584247626,-674.15,0.00010546,2]
[348496993,1736584247634,-1390.55,0.00010546,2]
[348496994,1736584247644,-985.62,0.00010546,2]
[348496995,1736584247653,-500.0,0.00010546,2]
[348496996,1736584247662,-3905.11,0.00010546,2]
[348496997,1736584247671,-500.0,0.00010546,2]
[348496998,1736584247681,-747.31,0.00010546,2]
[348496999,1736584247690,-500.0,0.00010546,2]
[348497000,1736584247699,-500.0,0.00010546,2]
[348497001,1736584247708,-1803.48,0.00010546,2]
[348497002,1736584247717,-797.67,0.00010546,2]
[348497003,1736584247727,-696.28,0.00010546,2]
[348497004,1736584247736,-599.07,0.00010546,2]
[348497005,1736584247745,-559.360056,0.00010546,2]
[348497006,1736584247753,-1037.3,0.00010546,2]
[348497007,1736584247763,-2016.09,0.00010546,2]
[348497008,1736584247772,-1351.14,0.00010546,2]
[348497009,1736584247781,-500.0,0.00010546,2]
[348497010,1736584247791,-816.82,0.00010546,2]
[348497011,1736584247800,-663.435756,0.00010546,2]
[348497012,1736584247809,-2570.39,0.00010546,2]
[348497013,1736584247818,-543.222302,0.00010546,2]
[348497014,1736584247828,-1485.17,0.00010546,2]
[348497015,1736584247837,-500.0,0.00010546,2]
[348497016,1736584247847,-2018.99,0.00010546,2]
[348497017,1736584247857,-650.86,0.00010546,2]
[348497018,1736584247866,-1041.56,0.00010546,2]
[348497019,1736584247875,-500.0,0.00010546,2]
[348497020,1736584247884,-977.14,0.00010546,2]
[348497021,1736584247894,-718.54,0.00010546,2]
[348497022,1736584247903,-500.0,0.00010546,2]
[348497023,1736584247913,-500.0,0.00010546,2]
[348497024,1736584247923,-500.0,0.00010546,2]
[348497025,1736584247933,-500.0,0.00010546,2]
[348497026,1736584247943,-620.96,0.00010546,2]
[348497027,1736584247952,-1277.46,0.00010546,2]
[348497028,1736584247961,-1884.38,0.00010546,2]
[348497029,1736584247971,-666.36,0.00010546,2]
[348497030,1736584247980,-500.0,0.00010546,2]
[348497031,1736584247989,-1535.86,0.00010546,2]
[348497032,1736584247999,-963.85,0.00010546,2]
[348497033,1736584248008,-895.98,0.00010546,2]
[348497034,1736584248018,-500.0,0.00010546,2]
[348497035,1736584248027,-500.0,0.00010546,2]
[348497036,1736584248037,-500.0,0.00010546,2]
[348497037,1736584248047,-500.0,0.00010546,2]
[348497038,1736584248057,-500.0,0.00010546,2]
[348497039,1736584248066,-500.0,0.00010546,2]
[348497040,1736584248076,-500.0,0.00010546,2]
[348497041,1736584248085,-604.85,0.00010546,2]
[348497042,1736584248095,-500.0,0.00010546,2]
[348497043,1736584248104,-500.0,0.00010546,2]
[348497044,1736584248114,-500.0,0.00010546,2]
[348497045,1736584248124,-3135.94,0.00010546,2]
[348497046,1736584248134,-816.99,0.00010546,2]
[348497047,1736584248143,-500.0,0.00010546,2]
[348497048,1736584248153,-766.56,0.00010546,2]
[348497049,1736584248162,-2274.23,0.00010546,2]
[348497050,1736584248172,-1599.89,0.00010546,2]
[348497051,1736584248182,-500.0,0.00010546,2]
[348497052,1736584248192,-694.2,0.00010546,2]
[348497053,1736584248202,-500.0,0.00010547,2]
[348497054,1736584248211,-500.0,0.00010547,2]
[348497055,1736584248220,-1613.86,0.00010547,2]
[348497056,1736584248229,-500.0,0.00010547,2]
[348497057,1736584248239,-500.0,0.00010547,2]
[348497058,1736584248249,-500.0,0.00010547,2]
[348497059,1736584248259,-500.0,0.00010547,2]
[348497060,1736584248268,-500.0,0.00010547,2]
[348497061,1736584248278,-500.0,0.00010547,2]
[348497062,1736584248288,-500.0,0.00010547,2]
[348497063,1736584248297,-500.0,0.00010547,2]
[348497064,1736584248307,-500.0,0.00010547,2]
[348497065,1736584248316,-500.0,0.00010547,2]
[348497066,1736584248326,-500.0,0.00010547,2]
[348497067,1736584248337,-500.0,0.00010547,2]
[348497068,1736584248346,-844.55,0.00010547,2]
[348497069,1736584248356,-517.94,0.00010547,2]
[348497070,1736584248366,-500.0,0.00010547,2]
[348497071,1736584248377,-609.96,0.00010547,2]
[348497072,1736584248387,-500.0,0.00010547,2]
[348497073,1736584248396,-638.22,0.00010547,2]
[348497074,1736584248405,-462.08398066,0.00010547,2]
[348497075,1736584248415,-500.0,0.00010547,2]
[348497076,1736584248425,-500.0,0.00010547,2]
[348497077,1736584248435,-556.9,0.00010547,2]
[348497078,1736584248444,-794.88,0.00010547,2]
[348497079,1736584248455,-601.88,0.00010547,2]
[348497080,1736584248465,-292.08620687,0.00010547,2]
[348497081,1736584248475,-500.0,0.00010547,2]
[348497082,1736584248484,-500.0,0.00010547,2]
[348497083,1736584248494,-500.0,0.00010547,2]
[348497084,1736584248504,-500.0,0.00010547,2]
[348497085,1736584248515,-500.0,0.00010547,2]
[348497086,1736584248525,-500.0,0.00010547,2]
[348497087,1736584248535,-559.19,0.00010547,2]
[348497088,1736584248545,-500.0,0.00010547,2]
[348497089,1736584248555,-1000.0,0.00010547,2]
[348497090,1736584248565,-500.0,0.00010547,2]
[348497091,1736584248576,-500.0,0.00010547,2]
[348497092,1736584248586,-500.0,0.00010547,2]
[348497093,1736584248596,-501.09,0.00010547,2]
[348497094,1736584248606,-500.0,0.00010547,2]
[348497095,1736584248616,-500.0,0.00010547,2]
[348497096,1736584248625,-507.52,0.00010547,2]
[348497097,1736584248634,-500.0,0.00010547,2]
[348497098,1736584248644,-500.0,0.00010547,2]
[348497099,1736584248654,-500.0,0.00010547,2]
[348497100,1736584248664,-540.19,0.00010547,2]
[348497101,1736584248677,-500.0,0.00010547,2]
[348497102,1736584248687,-500.0,0.00010547,2]
[348497103,1736584248697,-1423.91,0.00010547,2]
[348497104,1736584248706,-500.0,0.00010547,2]
[348497105,1736584248716,-500.0,0.00010547,2]
[348497106,1736584248726,-500.0,0.00010547,2]
[348497107,1736584248735,-500.0,0.00010547,2]
[348497108,1736584248745,-500.0,0.00010547,2]